[Event "*** Titled Tuesday Blitz"]
[Site "Chess.com"]
[Date "2021.03.09"]
[Round "11"]
[White "GM_Huschenbeth"]
[Black "iturrizaga"]
[Result "1-0"]
[WhiteElo "2660"]
[BlackElo "2807"]
[TimeControl "180+1"]
[EndTime "12:08:40 PST"]
[Termination "GM_Huschenbeth won by resignation"]

1. e4 {[%clk 0:03:00.9]} 1... c5 {[%clk 0:02:48.9]} 2. Nf3 {[%clk 0:03:00.9]}
2... Nc6 {[%clk 0:02:48.8]} 3. d4 {[%clk 0:03:01.4]} 3... cxd4 {[%clk
0:02:49.7]} 4. Nxd4 {[%clk 0:03:02.2]} 4... g6 {[%clk 0:02:50.2]} 5. c4 {[%clk
0:03:01.8]} 5... Nf6 {[%clk 0:02:50.7]} 6. Nc3 {[%clk 0:03:01.4]} 6... d6 {[%clk
0:02:51.4]} 7. Be2 {[%clk 0:02:59]} 7... Nxd4 {[%clk 0:02:51.5]} 8. Qxd4 {[%clk
0:02:59.9]} 8... Bg7 {[%clk 0:02:52.2]} 9. Be3 {[%clk 0:03:00.3]} 9... O-O
{[%clk 0:02:52.7]} 10. Qd2 {[%clk 0:03:00.9]} 10... a5 {[%clk 0:02:53.3]} 11.
O-O {[%clk 0:03:01.1]} 11... a4 {[%clk 0:02:53.7]} 12. Bd4 {[%clk 0:02:58.5]}
12... Be6 {[%clk 0:02:39.8]} 13. f4 {[%clk 0:02:57.1]} 13... Qa5 {[%clk
0:02:40]} 14. Rad1 {[%clk 0:02:56.6]} 14... Qb4 {[%clk 0:02:18.4]} 15. a3 {[%clk
0:01:55.5]} 15... Qb3 {[%clk 0:02:01.4]} 16. Rc1 {[%clk 0:01:51.9]} 16... Bxc4
{[%clk 0:00:58.2]} 17. Bd1 {[%clk 0:01:47.8]} 17... Bxf1 {[%clk 0:00:16.7]} 18.
Bxb3 {[%clk 0:01:47.2]} 18... axb3 {[%clk 0:00:16.9]} 19. Kxf1 {[%clk
0:01:45.3]} 19... Rfc8 {[%clk 0:00:16.6]} 20. Bxf6 {[%clk 0:01:36.9]} 20... exf6
{[%clk 0:00:13.3]} 21. Nd5 {[%clk 0:01:36.8]} 21... Rc5 {[%clk 0:00:12]} 22.
Rxc5 {[%clk 0:01:36.3]} 22... dxc5 {[%clk 0:00:12.9]} 23. Qc3 {[%clk 0:01:36.2]}
23... f5 {[%clk 0:00:13.1]} 24. Qxb3 {[%clk 0:01:34.4]} 24... fxe4 {[%clk
0:00:12.9]} 25. Qxb7 {[%clk 0:01:34.4]} 25... Re8 {[%clk 0:00:13]} 26. Qd7
{[%clk 0:01:33.7]} 26... Rb8 {[%clk 0:00:12.1]} 27. Ne7+ {[%clk 0:01:33.2]}
27... Kh8 {[%clk 0:00:11.8]} 28. Nc6 {[%clk 0:01:33.3]} 28... Rf8 {[%clk
0:00:11.9]} 29. a4 {[%clk 0:01:30]} 29... Bxb2 {[%clk 0:00:10.6]} 30. a5 {[%clk
0:01:30.3]} 30... c4 {[%clk 0:00:11.3]} 31. Qd5 {[%clk 0:01:23.7]} 31... c3
{[%clk 0:00:10.5]} 32. Qxe4 {[%clk 0:01:24]} 32... Rc8 {[%clk 0:00:10.3]} 33.
Qe5+ {[%clk 0:01:19.1]} 33... Kg8 {[%clk 0:00:10.3]} 34. Ne7+ {[%clk 0:01:19.5]}
34... Kf8 {[%clk 0:00:11]} 35. Nxc8 {[%clk 0:01:20.3]} 35... c2 {[%clk
0:00:11.3]} 36. Qxb2 {[%clk 0:01:20.8]} 1-0

[Event "*** Titled Tuesday Blitz"]
[Site "Chess.com"]
[Date "2021.03.09"]
[Round "11"]
[White "barbara25"]
[Black "beautroll"]
[Result "0-1"]
[WhiteElo "2287"]
[BlackElo "2436"]
[TimeControl "180+1"]
[EndTime "12:08:40 PST"]
[Termination "beautroll won by resignation"]

1. e4 {[%clk 0:03:00.9]} 1... c5 {[%clk 0:03:00]} 2. Nf3 {[%clk 0:02:59.2]} 2...
d6 {[%clk 0:03:00]} 3. d4 {[%clk 0:02:56.1]} 3... cxd4 {[%clk 0:03:00.9]} 4.
Nxd4 {[%clk 0:02:48.5]} 4... Nf6 {[%clk 0:03:00.8]} 5. Nc3 {[%clk 0:02:46.9]}
5... a6 {[%clk 0:03:01]} 6. f3 {[%clk 0:02:45.6]} 6... e5 {[%clk 0:02:58.3]} 7.
Nb3 {[%clk 0:02:34.9]} 7... Be6 {[%clk 0:02:56.1]} 8. Be3 {[%clk 0:02:27.3]}
8... h5 {[%clk 0:02:53.7]} 9. Qd2 {[%clk 0:02:27.4]} 9... Nbd7 {[%clk
0:02:52.3]} 10. O-O-O {[%clk 0:02:27.5]} 10... Be7 {[%clk 0:02:47.8]} 11. Kb1
{[%clk 0:02:27.6]} 11... Rc8 {[%clk 0:02:46.8]} 12. g3 {[%clk 0:02:27.9]} 12...
b5 {[%clk 0:02:40.5]} 13. Bd3 {[%clk 0:02:27.2]} 13... Nb6 {[%clk 0:02:37.2]}
14. Bxb6 {[%clk 0:02:20.3]} 14... Qxb6 {[%clk 0:02:36.6]} 15. f4 {[%clk
0:02:20.8]} 15... b4 {[%clk 0:02:25.4]} 16. Nd5 {[%clk 0:02:19.4]} 16... Bxd5
{[%clk 0:02:18.7]} 17. exd5 {[%clk 0:02:19.4]} 17... e4 {[%clk 0:02:17.1]} 18.
Be2 {[%clk 0:02:17.7]} 18... O-O {[%clk 0:02:11.8]} 19. h3 {[%clk 0:02:16.4]}
19... a5 {[%clk 0:02:05.5]} 20. g4 {[%clk 0:02:15.3]} 20... a4 {[%clk
0:02:05.3]} 21. Nc1 {[%clk 0:02:13.8]} 21... e3 {[%clk 0:01:55]} 22. Qd3 {[%clk
0:02:02.9]} 22... Nd7 {[%clk 0:01:53.3]} 23. gxh5 {[%clk 0:02:01]} 23... Bf6
{[%clk 0:01:53.2]} 24. h6 {[%clk 0:01:59.8]} 24... a3 {[%clk 0:01:43.5]} 25.
Rhg1 {[%clk 0:01:51.2]} 25... axb2 {[%clk 0:01:39.9]} 26. Nb3 {[%clk 0:01:50.5]}
26... Qa7 {[%clk 0:01:28.5]} 27. Rxg7+ {[%clk 0:01:24.4]} 27... Bxg7 {[%clk
0:01:24.3]} 28. hxg7 {[%clk 0:01:24.6]} 28... Rfe8 {[%clk 0:01:08.4]} 29. Bh5
{[%clk 0:01:23]} 29... Nf6 {[%clk 0:01:00.4]} 30. Be2 {[%clk 0:01:16.5]} 30...
Ra8 {[%clk 0:00:59.7]} 31. Kxb2 {[%clk 0:01:04.3]} 31... Qxa2+ {[%clk
0:00:59.6]} 32. Kc1 {[%clk 0:01:04.5]} 32... Rec8 {[%clk 0:01:00.5]} 33. h4
{[%clk 0:00:56.4]} 33... Rc3 {[%clk 0:01:00.1]} 34. Qf5 {[%clk 0:00:39.8]} 34...
Qxb3 {[%clk 0:00:57.3]} 0-1

[Event "*** Titled Tuesday Blitz"]
[Site "Chess.com"]
[Date "2021.03.09"]
[Round "11"]
[White "ShcufNaiRolf"]
[Black "HrvojeZagreb"]
[Result "0-1"]
[WhiteElo "2346"]
[BlackElo "2278"]
[TimeControl "180+1"]
[EndTime "12:08:40 PST"]
[Termination "HrvojeZagreb won by checkmate"]

1. e4 {[%clk 0:03:00.9]} 1... e6 {[%clk 0:03:00.2]} 2. d4 {[%clk 0:02:58.5]}
2... d5 {[%clk 0:03:00.3]} 3. Nc3 {[%clk 0:02:58.1]} 3... dxe4 {[%clk
0:03:00.6]} 4. Nxe4 {[%clk 0:02:58.2]} 4... Nd7 {[%clk 0:03:01.4]} 5. Nf3 {[%clk
0:02:53.6]} 5... Ngf6 {[%clk 0:03:01.5]} 6. Bd3 {[%clk 0:02:52]} 6... Nxe4
{[%clk 0:03:01]} 7. Bxe4 {[%clk 0:02:51.6]} 7... Nf6 {[%clk 0:03:01.9]} 8. Bg5
{[%clk 0:02:49.4]} 8... Be7 {[%clk 0:03:01.4]} 9. Bxf6 {[%clk 0:02:41.9]} 9...
Bxf6 {[%clk 0:03:02.3]} 10. Qe2 {[%clk 0:02:28.9]} 10... O-O {[%clk 0:02:58.5]}
11. O-O-O {[%clk 0:02:27.6]} 11... c5 {[%clk 0:02:56.4]} 12. dxc5 {[%clk
0:02:11.1]} 12... Qa5 {[%clk 0:02:56.2]} 13. Qc4 {[%clk 0:02:11.2]} 13... b5
{[%clk 0:02:46.3]} 14. cxb6 {[%clk 0:01:52]} 14... Rb8 {[%clk 0:02:38.6]} 15.
Rd6 {[%clk 0:01:35.8]} 15... Ba6 {[%clk 0:02:26.6]} 16. Qb3 {[%clk 0:01:29.4]}
16... Qc5 {[%clk 0:02:07]} 17. Rhd1 {[%clk 0:01:24.9]} 17... Qxf2 {[%clk
0:02:05.3]} 18. Kb1 {[%clk 0:01:17.8]} 18... Be2 {[%clk 0:01:57.5]} 19. Rc1
{[%clk 0:00:27]} 19... Qc5 {[%clk 0:01:46.5]} 20. Rc6 {[%clk 0:00:21.7]} 20...
Qb5 {[%clk 0:01:34.7]} 21. Qxb5 {[%clk 0:00:18.3]} 21... Bxb5 {[%clk 0:01:35.6]}
22. Rc5 {[%clk 0:00:12.8]} 22... Rxb6 {[%clk 0:01:34.7]} 23. b3 {[%clk
0:00:08.9]} 23... a5 {[%clk 0:01:30.6]} 24. Rd1 {[%clk 0:00:04.8]} 24... a4
{[%clk 0:01:29.2]} 25. Kc1 {[%clk 0:00:04.1]} 25... Be2 {[%clk 0:01:25.8]} 26.
Re1 {[%clk 0:00:03.2]} 26... Bxf3 {[%clk 0:01:24.5]} 27. Bxf3 {[%clk 0:00:03]}
27... axb3 {[%clk 0:01:21.8]} 28. axb3 {[%clk 0:00:03.9]} 28... Ra6 {[%clk
0:01:21]} 29. Re4 {[%clk 0:00:04.3]} 29... Ra1+ {[%clk 0:01:16.9]} 30. Kd2
{[%clk 0:00:04.7]} 30... Rd8+ {[%clk 0:01:16.8]} 31. Ke2 {[%clk 0:00:05]} 31...
Rad1 {[%clk 0:01:15.3]} 32. Re3 {[%clk 0:00:05]} 32... R8d2# {[%clk 0:01:14.3]}
0-1

[Event "*** Titled Tuesday Blitz"]
[Site "Chess.com"]
[Date "2021.03.09"]
[Round "11"]
[White "PopMilan95"]
[Black "kuli4ik"]
[Result "1-0"]
[WhiteElo "2673"]
[BlackElo "2893"]
[TimeControl "180+1"]
[EndTime "12:08:42 PST"]
[Termination "PopMilan95 won by resignation"]

1. e4 {[%clk 0:03:00.9]} 1... e6 {[%clk 0:02:59.3]} 2. d3 {[%clk 0:03:00.3]}
2... d5 {[%clk 0:03:00.2]} 3. Qe2 {[%clk 0:03:00.4]} 3... c5 {[%clk 0:02:59.6]}
4. Nf3 {[%clk 0:03:00.5]} 4... Nc6 {[%clk 0:02:59.5]} 5. g3 {[%clk 0:03:00.9]}
5... Nf6 {[%clk 0:03:00]} 6. Bg2 {[%clk 0:03:01.1]} 6... g6 {[%clk 0:03:00.5]}
7. Bg5 {[%clk 0:02:15.9]} 7... Be7 {[%clk 0:02:46.8]} 8. e5 {[%clk 0:02:07.7]}
8... Nd7 {[%clk 0:02:46]} 9. Bxe7 {[%clk 0:01:54.3]} 9... Qxe7 {[%clk
0:02:45.7]} 10. h4 {[%clk 0:01:48.8]} 10... h6 {[%clk 0:02:39.1]} 11. c3 {[%clk
0:01:48.1]} 11... b6 {[%clk 0:02:37.4]} 12. Na3 {[%clk 0:01:45.2]} 12... Ba6
{[%clk 0:02:35.6]} 13. c4 {[%clk 0:01:40.8]} 13... O-O-O {[%clk 0:02:27.7]} 14.
Nb5 {[%clk 0:01:35.6]} 14... Bxb5 {[%clk 0:02:21.3]} 15. cxb5 {[%clk 0:01:36.5]}
15... Nd4 {[%clk 0:02:21.6]} 16. Nxd4 {[%clk 0:01:29.9]} 16... cxd4 {[%clk
0:02:22.5]} 17. O-O {[%clk 0:01:24]} 17... Kb8 {[%clk 0:02:22]} 18. a4 {[%clk
0:01:23.6]} 18... Qb4 {[%clk 0:02:20.6]} 19. Qf3 {[%clk 0:00:59.7]} 19... Rhf8
{[%clk 0:02:14.3]} 20. Qf4 {[%clk 0:00:57.1]} 20... h5 {[%clk 0:02:13.8]} 21.
Bxd5 {[%clk 0:00:54.1]} 21... Nc5 {[%clk 0:02:10.5]} 22. Bg2 {[%clk 0:00:47.7]}
22... a5 {[%clk 0:01:48.3]} 23. bxa6 {[%clk 0:00:39.3]} 23... Ka7 {[%clk
0:01:48.2]} 24. Rac1 {[%clk 0:00:28.2]} 24... Rd7 {[%clk 0:01:44]} 25. Rc4
{[%clk 0:00:24.7]} 25... Qxb2 {[%clk 0:01:44.1]} 26. a5 {[%clk 0:00:22.5]} 26...
Nxd3 {[%clk 0:01:44.4]} 27. Qe4 {[%clk 0:00:18]} 27... Qb3 {[%clk 0:01:32.3]}
28. axb6+ {[%clk 0:00:16.9]} 28... Kxa6 {[%clk 0:01:21.2]} 29. Qc6 {[%clk
0:00:15.4]} 29... Nxe5 {[%clk 0:01:02.4]} 30. Ra1+ {[%clk 0:00:14]} 1-0

[Event "*** Titled Tuesday Blitz"]
[Site "Chess.com"]
[Date "2021.03.09"]
[Round "11"]
[White "NateSolon"]
[Black "Arvids_Andrejevs"]
[Result "0-1"]
[WhiteElo "2589"]
[BlackElo "2456"]
[TimeControl "180+1"]
[EndTime "12:08:44 PST"]
[Termination "Arvids_Andrejevs won by resignation"]

1. d4 {[%clk 0:03:00.9]} 1... d5 {[%clk 0:03:00]} 2. c4 {[%clk 0:03:00.8]} 2...
dxc4 {[%clk 0:03:00.3]} 3. e3 {[%clk 0:02:58.9]} 3... e6 {[%clk 0:03:00.6]} 4.
Nf3 {[%clk 0:02:58.7]} 4... Nf6 {[%clk 0:03:00.9]} 5. Bxc4 {[%clk 0:02:58.7]}
5... a6 {[%clk 0:03:01.6]} 6. O-O {[%clk 0:02:57.9]} 6... b5 {[%clk 0:03:01.7]}
7. Bd3 {[%clk 0:02:58.4]} 7... Bb7 {[%clk 0:03:01.9]} 8. a4 {[%clk 0:02:58.5]}
8... b4 {[%clk 0:02:50.3]} 9. Nbd2 {[%clk 0:02:57.2]} 9... c5 {[%clk 0:02:50.4]}
10. Qe2 {[%clk 0:02:56.4]} 10... Nc6 {[%clk 0:02:44.2]} 11. Nb3 {[%clk
0:02:40.6]} 11... cxd4 {[%clk 0:02:41.6]} 12. exd4 {[%clk 0:02:40.5]} 12... Nd5
{[%clk 0:02:30.7]} 13. Re1 {[%clk 0:02:31.6]} 13... Be7 {[%clk 0:02:25.9]} 14.
Bd2 {[%clk 0:02:25.2]} 14... O-O {[%clk 0:02:05.4]} 15. Rac1 {[%clk 0:02:24.8]}
15... Qd6 {[%clk 0:01:37.8]} 16. Nc5 {[%clk 0:02:21.7]} 16... Rab8 {[%clk
0:01:33.4]} 17. Nxb7 {[%clk 0:02:16.3]} 17... Rxb7 {[%clk 0:01:32.7]} 18. Bxa6
{[%clk 0:02:16.5]} 18... Rb6 {[%clk 0:01:28.1]} 19. Bb5 {[%clk 0:02:15.8]} 19...
Bf6 {[%clk 0:01:25.2]} 20. Qe4 {[%clk 0:02:10.5]} 20... Rd8 {[%clk 0:01:10.3]}
21. Ne5 {[%clk 0:01:43.8]} 21... Nce7 {[%clk 0:00:53.3]} 22. Nc4 {[%clk
0:01:42.2]} 22... Qb8 {[%clk 0:00:52.5]} 23. Nxb6 {[%clk 0:01:41.8]} 23... Qxb6
{[%clk 0:00:53.4]} 24. Rc4 {[%clk 0:01:35]} 24... Nf5 {[%clk 0:00:50.9]} 25.
Bxb4 {[%clk 0:01:27]} 25... Bxd4 {[%clk 0:00:46.9]} 26. Rc2 {[%clk 0:00:55.7]}
26... Nxb4 {[%clk 0:00:45.2]} 27. Rce2 {[%clk 0:00:52.4]} 27... h6 {[%clk
0:00:35.3]} 28. g3 {[%clk 0:00:47.4]} 28... Nd6 {[%clk 0:00:30.2]} 0-1

[Event "*** Titled Tuesday Blitz"]
[Site "Chess.com"]
[Date "2021.03.09"]
[Round "11"]
[White "KruHor"]
[Black "volkanyirik"]
[Result "1-0"]
[WhiteElo "2532"]
[BlackElo "2414"]
[TimeControl "180+1"]
[EndTime "12:08:44 PST"]
[Termination "KruHor won by resignation"]

1. e4 {[%clk 0:02:58.7]} 1... c5 {[%clk 0:02:58.3]} 2. Nf3 {[%clk 0:02:57.9]}
2... d6 {[%clk 0:02:58.7]} 3. d4 {[%clk 0:02:56.5]} 3... cxd4 {[%clk 0:02:59.6]}
4. Nxd4 {[%clk 0:02:56.1]} 4... Nf6 {[%clk 0:02:59.5]} 5. Nc3 {[%clk 0:02:56]}
5... e6 {[%clk 0:02:59.7]} 6. Qe2 {[%clk 0:02:55.1]} 6... Nc6 {[%clk 0:02:53.8]}
7. Nb3 {[%clk 0:02:54.6]} 7... Be7 {[%clk 0:02:52.7]} 8. Be3 {[%clk 0:02:46.9]}
8... a6 {[%clk 0:02:52.4]} 9. g4 {[%clk 0:02:45.8]} 9... O-O {[%clk 0:02:51.5]}
10. g5 {[%clk 0:02:45.1]} 10... Nd7 {[%clk 0:02:51.6]} 11. h4 {[%clk 0:02:42.7]}
11... b5 {[%clk 0:02:51.7]} 12. a3 {[%clk 0:02:39.5]} 12... Nde5 {[%clk
0:02:48.5]} 13. h5 {[%clk 0:02:19.9]} 13... Nc4 {[%clk 0:02:39.9]} 14. g6 {[%clk
0:02:16]} 14... h6 {[%clk 0:02:40.1]} 15. Rg1 {[%clk 0:02:04]} 15... f6 {[%clk
0:02:36.1]} 16. O-O-O {[%clk 0:01:49.4]} 16... Qc7 {[%clk 0:02:29.8]} 17. Bxh6
{[%clk 0:01:33]} 17... gxh6 {[%clk 0:02:18.5]} 18. g7 {[%clk 0:01:32.7]} 18...
Rf7 {[%clk 0:02:18.5]} 19. Qg4 {[%clk 0:01:32]} 19... N6e5 {[%clk 0:02:12.3]}
20. Qg3 {[%clk 0:01:31.8]} 20... f5 {[%clk 0:02:01.5]} 21. f4 {[%clk 0:01:24.6]}
21... Ng4 {[%clk 0:01:57.4]} 22. exf5 {[%clk 0:01:20.7]} 22... exf5 {[%clk
0:01:56.1]} 23. Nd5 {[%clk 0:01:18.1]} 23... Qa7 {[%clk 0:01:55.2]} 24. Bxc4
{[%clk 0:00:56.7]} 24... bxc4 {[%clk 0:01:54.8]} 25. Nd4 {[%clk 0:00:56.5]}
25... Rb8 {[%clk 0:01:38.5]} 26. Nc6 {[%clk 0:00:51.4]} 26... Qb7 {[%clk
0:01:34.3]} 27. Nxb8 {[%clk 0:00:49.7]} 27... Qxb8 {[%clk 0:01:35.2]} 28. Rge1
{[%clk 0:00:46.9]} 28... Qb7 {[%clk 0:01:24.6]} 29. Qc3 {[%clk 0:00:45.6]} 29...
Nf6 {[%clk 0:01:01.7]} 30. Nxe7+ {[%clk 0:00:37]} 30... Rxe7 {[%clk 0:01:00.8]}
31. Qxf6 {[%clk 0:00:36.4]} 31... Rxg7 {[%clk 0:00:52.2]} 32. Re8+ {[%clk
0:00:34.5]} 32... Kh7 {[%clk 0:00:52.4]} 33. Qf8 {[%clk 0:00:27.4]} 1-0

[Event "*** Titled Tuesday Blitz"]
[Site "Chess.com"]
[Date "2021.03.09"]
[Round "11"]
[White "Gulkov_Igor"]
[Black "kakakz"]
[Result "1/2-1/2"]
[WhiteElo "2528"]
[BlackElo "2429"]
[TimeControl "180+1"]
[EndTime "12:08:46 PST"]
[Termination "Game drawn by repetition"]

1. Nf3 {[%clk 0:03:00.9]} 1... d6 {[%clk 0:03:00.9]} 2. d4 {[%clk 0:03:00.3]}
2... g6 {[%clk 0:03:01.1]} 3. c4 {[%clk 0:02:59.4]} 3... Bg7 {[%clk 0:03:02]} 4.
Nc3 {[%clk 0:02:59.2]} 4... Nd7 {[%clk 0:03:01.5]} 5. e4 {[%clk 0:02:58.3]} 5...
e5 {[%clk 0:03:01.5]} 6. Be2 {[%clk 0:02:58.5]} 6... Ne7 {[%clk 0:02:59.2]} 7.
d5 {[%clk 0:02:58.1]} 7... a5 {[%clk 0:02:57.5]} 8. h4 {[%clk 0:02:57.7]} 8...
h5 {[%clk 0:02:53.2]} 9. Ng5 {[%clk 0:02:56.4]} 9... Nc5 {[%clk 0:02:51.7]} 10.
Be3 {[%clk 0:02:55.4]} 10... f6 {[%clk 0:02:42.4]} 11. Nh3 {[%clk 0:02:52.5]}
11... Bh6 {[%clk 0:02:40.7]} 12. Bxh6 {[%clk 0:02:48.3]} 12... Rxh6 {[%clk
0:02:40.2]} 13. Qd2 {[%clk 0:02:48.7]} 13... Rh8 {[%clk 0:02:25.9]} 14. f3
{[%clk 0:02:48.2]} 14... Bd7 {[%clk 0:02:18.5]} 15. Nf2 {[%clk 0:02:47]} 15...
Kf7 {[%clk 0:02:16.3]} 16. b3 {[%clk 0:02:45.8]} 16... Qf8 {[%clk 0:02:15.9]}
17. Rb1 {[%clk 0:02:43.7]} 17... Qh6 {[%clk 0:02:15.1]} 18. Qxh6 {[%clk
0:02:26.9]} 18... Rxh6 {[%clk 0:02:14.3]} 19. Kd2 {[%clk 0:02:24.4]} 19... g5
{[%clk 0:02:13.6]} 20. Nd3 {[%clk 0:02:09.2]} 20... Ng6 {[%clk 0:02:01.6]} 21.
hxg5 {[%clk 0:02:01.3]} 21... fxg5 {[%clk 0:02:00.9]} 22. Nxc5 {[%clk
0:01:39.8]} 22... dxc5 {[%clk 0:02:01.8]} 23. a3 {[%clk 0:01:39.6]} 23... h4
{[%clk 0:01:46.9]} 24. b4 {[%clk 0:01:38.8]} 24... axb4 {[%clk 0:01:43.6]} 25.
axb4 {[%clk 0:01:38.8]} 25... cxb4 {[%clk 0:01:30.7]} 26. Rxb4 {[%clk
0:01:38.6]} 26... Ra7 {[%clk 0:01:26.7]} 27. Rhb1 {[%clk 0:01:36.7]} 27... Nf4
{[%clk 0:01:18.6]} 28. Bf1 {[%clk 0:01:33.6]} 28... b6 {[%clk 0:01:18.5]} 29. c5
{[%clk 0:01:30.9]} 29... bxc5 {[%clk 0:00:43.6]} 30. Rb7 {[%clk 0:01:30.3]}
30... Rxb7 {[%clk 0:00:43.5]} 31. Rxb7 {[%clk 0:01:29.4]} 31... Ke7 {[%clk
0:00:31.7]} 32. Rxc7 {[%clk 0:01:28.9]} 32... Kd6 {[%clk 0:00:31.9]} 33. Ra7
{[%clk 0:01:26.3]} 33... Rh8 {[%clk 0:00:31.1]} 34. Ra6+ {[%clk 0:01:01]} 34...
Kc7 {[%clk 0:00:27.3]} 35. Ra7+ {[%clk 0:01:00.2]} 35... Kd6 {[%clk 0:00:27.3]}
36. Ra6+ {[%clk 0:01:00.5]} 36... Kc7 {[%clk 0:00:27.3]} 37. Ra7+ {[%clk
0:01:00.7]} 37... Kd6 {[%clk 0:00:27.5]} 1/2-1/2

[Event "*** Titled Tuesday Blitz"]
[Site "Chess.com"]
[Date "2021.03.09"]
[Round "11"]
[White "attack2mateU"]
[Black "Konavets"]
[Result "0-1"]
[WhiteElo "2744"]
[BlackElo "2933"]
[TimeControl "180+1"]
[EndTime "12:08:51 PST"]
[Termination "Konavets won by resignation"]

1. e4 {[%clk 0:03:00.9]} 1... d6 {[%clk 0:02:51.9]} 2. d4 {[%clk 0:03:00.5]}
2... Nf6 {[%clk 0:02:52.8]} 3. Nc3 {[%clk 0:03:00.7]} 3... g6 {[%clk 0:02:52.8]}
4. Be3 {[%clk 0:03:00.2]} 4... Bg7 {[%clk 0:02:53.4]} 5. Qd2 {[%clk 0:03:00.2]}
5... c6 {[%clk 0:02:53.5]} 6. f3 {[%clk 0:02:58.9]} 6... Qa5 {[%clk 0:02:53.3]}
7. O-O-O {[%clk 0:02:57.5]} 7... b5 {[%clk 0:02:53.5]} 8. Kb1 {[%clk 0:02:58.1]}
8... Nbd7 {[%clk 0:02:52.7]} 9. Bh6 {[%clk 0:02:55.7]} 9... Bxh6 {[%clk
0:02:52.8]} 10. Qxh6 {[%clk 0:02:56.1]} 10... Nb6 {[%clk 0:02:53.6]} 11. Nce2
{[%clk 0:02:44]} 11... Be6 {[%clk 0:02:52.3]} 12. Nc1 {[%clk 0:02:43.8]} 12...
Nc4 {[%clk 0:02:50.6]} 13. Bxc4 {[%clk 0:02:11.4]} 13... bxc4 {[%clk 0:02:51.5]}
14. c3 {[%clk 0:02:09.8]} 14... Rb8 {[%clk 0:02:11.7]} 15. Nge2 {[%clk
0:02:09.2]} 15... d5 {[%clk 0:02:08.6]} 16. e5 {[%clk 0:02:02.5]} 16... Bf5+
{[%clk 0:02:07.1]} 17. Ka1 {[%clk 0:02:03.1]} 17... Nd7 {[%clk 0:01:52.5]} 18.
Rd2 {[%clk 0:02:00.1]} 18... Nb6 {[%clk 0:01:40.4]} 19. g4 {[%clk 0:01:59.3]}
19... Bd3 {[%clk 0:01:41]} 20. Nf4 {[%clk 0:01:52.7]} 20... Na4 {[%clk
0:01:40.5]} 21. Qg7 {[%clk 0:01:38.6]} 21... Rf8 {[%clk 0:01:38.6]} 22. Nfxd3
{[%clk 0:01:25.7]} 22... cxd3 {[%clk 0:01:35.3]} 23. Nxd3 {[%clk 0:01:26.6]}
23... Nxc3 {[%clk 0:00:54.3]} 24. bxc3 {[%clk 0:01:25.9]} 24... Qxc3+ {[%clk
0:00:43.8]} 25. Rb2 {[%clk 0:01:25.7]} 25... Qxd4 {[%clk 0:00:39.9]} 26. Qh6
{[%clk 0:00:53.9]} 26... Kd7 {[%clk 0:00:33.3]} 27. Qf4 {[%clk 0:00:49.4]} 27...
Qxd3 {[%clk 0:00:29.5]} 28. Rxb8 {[%clk 0:00:49]} 28... Rxb8 {[%clk 0:00:27.9]}
29. e6+ {[%clk 0:00:49.1]} 29... Kc8 {[%clk 0:00:28.2]} 30. Qe5 {[%clk
0:00:34.6]} 30... f6 {[%clk 0:00:25.4]} 0-1

[Event "*** Titled Tuesday Blitz"]
[Site "Chess.com"]
[Date "2021.03.09"]
[Round "11"]
[White "HackingKid98"]
[Black "kuba2006"]
[Result "1-0"]
[WhiteElo "2458"]
[BlackElo "2343"]
[TimeControl "180+1"]
[EndTime "12:08:52 PST"]
[Termination "HackingKid98 won on time"]

1. c4 {[%clk 0:03:00.9]} 1... Nf6 {[%clk 0:03:00.9]} 2. Nc3 {[%clk 0:02:59.3]}
2... d6 {[%clk 0:03:01.1]} 3. d4 {[%clk 0:02:57.1]} 3... Nbd7 {[%clk 0:03:01.2]}
4. Nf3 {[%clk 0:02:56.4]} 4... e5 {[%clk 0:03:01.2]} 5. g3 {[%clk 0:02:56.6]}
5... Be7 {[%clk 0:03:00.5]} 6. Bg2 {[%clk 0:02:56.5]} 6... O-O {[%clk 0:03:01]}
7. O-O {[%clk 0:02:56.2]} 7... c6 {[%clk 0:03:01.2]} 8. e4 {[%clk 0:02:54.9]}
8... a6 {[%clk 0:02:56.4]} 9. a4 {[%clk 0:02:52.3]} 9... a5 {[%clk 0:02:54.4]}
10. h3 {[%clk 0:02:51.9]} 10... exd4 {[%clk 0:02:46.9]} 11. Nxd4 {[%clk
0:02:51]} 11... Nc5 {[%clk 0:02:47]} 12. Be3 {[%clk 0:02:49.7]} 12... Re8 {[%clk
0:02:45.4]} 13. Qc2 {[%clk 0:02:39.4]} 13... Bf8 {[%clk 0:02:44.3]} 14. Rad1
{[%clk 0:02:39.2]} 14... Nfd7 {[%clk 0:02:42.3]} 15. Kh2 {[%clk 0:02:31.4]}
15... Nb8 {[%clk 0:02:38.7]} 16. Nxc6 {[%clk 0:02:28.8]} 16... Nxc6 {[%clk
0:02:28.6]} 17. Bxc5 {[%clk 0:02:28.2]} 17... Be6 {[%clk 0:02:07.8]} 18. Nb5
{[%clk 0:02:11.4]} 18... dxc5 {[%clk 0:01:20.6]} 19. Rxd8 {[%clk 0:02:10.2]}
19... Rexd8 {[%clk 0:01:16.9]} 20. Rd1 {[%clk 0:02:05.6]} 20... Nb4 {[%clk
0:01:14.7]} 21. Qe2 {[%clk 0:01:58.4]} 21... Rxd1 {[%clk 0:01:07.1]} 22. Qxd1
{[%clk 0:01:59.3]} 22... Bxc4 {[%clk 0:01:06]} 23. e5 {[%clk 0:01:55.1]} 23...
Re8 {[%clk 0:00:50.4]} 24. f4 {[%clk 0:01:46.3]} 24... b6 {[%clk 0:00:43.8]} 25.
Qd7 {[%clk 0:01:35]} 25... Re7 {[%clk 0:00:17.9]} 26. Qd8 {[%clk 0:01:33.7]}
26... Be6 {[%clk 0:00:16.9]} 27. Qxb6 {[%clk 0:01:25.6]} 27... Rd7 {[%clk
0:00:14.2]} 28. Nd6 {[%clk 0:01:24.9]} 28... c4 {[%clk 0:00:11]} 29. Qxa5 {[%clk
0:01:21.1]} 29... Nd3 {[%clk 0:00:07.1]} 30. Qb5 {[%clk 0:01:17.2]} 30... Rd8
{[%clk 0:00:03.8]} 31. a5 {[%clk 0:01:16]} 31... Bd7 {[%clk 0:00:01.8]} 32. Qb6
{[%clk 0:01:11.9]} 1-0